bitfinex/quotes_ETHUSD_20250813
["timestamp","ask_amount","ask_price","bid_price","bid_amount"]
[1755092024508,120.37332973,4721.3,4721.2,8.8716]
[1755092025832,120.37332973,4721.3,4721.2,8.8724]
[1755092026542,120.37332973,4721.3,4721.2,9.14030788]
[1755092027231,120.37332973,4721.3,4721.2,11.77876465]
[1755092028005,120.37332973,4721.3,4721.2,11.51085677]
[1755092028234,120.37332973,4721.3,4721.2,11.77876465]
[1755092028702,118.37332973,4721.3,4721.2,11.77876465]
[1755092028902,118.37332973,4721.3,4721.2,9.14030788]
[1755092029332,118.37332973,4721.3,4721.2,8.8724]
[1755092029733,118.37332973,4721.3,4721.2,9.14030788]
[1755092030256,118.37332973,4721.3,4721.2,9.69030788]
[1755092030618,118.37332973,4721.3,4721.2,9.49204578]
[1755092030819,118.37332973,4721.3,4721.2,8.961]
[1755092031019,118.37332973,4721.3,4721.2,5.435]
[1755092031252,118.37332973,4721.3,4721.2,8.96]
[1755092031517,118.37332973,4721.3,4721.2,13.9784]
[1755092031935,118.37332973,4721.3,4721.2,9.1433]
[1755092032141,118.37332973,4721.3,4721.2,5.96]
[1755092033271,118.37332973,4721.3,4721.2,0.1064]
[1755092033474,118.37332973,4721.3,4721.2,3.6314]
[1755092033960,118.83942973,4721.3,4721.2,3.6304]
[1755092034274,120.80852973,4721.3,4721.2,3.6294]
[1755092034568,120.80852973,4721.3,4721.2,6.6294]
[1755092034851,120.80852973,4721.3,4721.2,3.6294]
[1755092036357,120.80852973,4721.3,4721.2,0.1064]
[1755092036652,120.80852973,4721.3,4721.2,6.6264]
[1755092036653,118.37252973,4721.3,4721.2,6.6264]
[1755092037431,118.37252973,4721.3,4721.2,8.955]
[1755092037943,118.37252973,4721.3,4721.2,8.956]
[1755092039164,118.37252973,4721.3,4721.2,9.1676]
[1755092039325,118.37252973,4721.3,4721.2,7.2779]
[1755092039531,118.37252973,4721.3,4721.2,3.1064]
[1755092040060,118.37252973,4721.3,4721.2,6.6254]
[1755092041677,118.37252973,4721.3,4721.2,16.9714]
[1755092042031,118.37252973,4721.3,4721.2,13.4524]
[1755092042231,118.37252973,4721.3,4721.2,16.9694]
[1755092042431,118.37252973,4721.3,4721.2,16.9674]
[1755092042656,118.37252973,4721.3,4721.2,11.6934]
[1755092043136,118.37252973,4721.3,4721.2,3.1064]
[1755092043329,118.37252973,4721.3,4721.2,6.6204]
[1755092044070,118.37252973,4721.3,4721.2,6.6184]
[1755092044537,118.83512973,4721.3,4721.2,6.6184]
[1755092044740,120.73502973,4721.3,4721.2,3.1064]
[1755092044952,120.73502973,4721.3,4721.2,0.1064]
[1755092045161,120.73502973,4721.3,4721.2,3.6154]
[1755092046783,120.73502973,4721.3,4721.2,0.1064]
[1755092047080,121.28502973,4721.3,4721.2,0.1064]
[1755092047280,0.55,4721.2,4719.2,0.15445971]
[1755092047579,2.3625,4721.1,4720.9,0.1056]
[1755092047776,2.9125,4721.1,4721.0,3.506]
[1755092048142,0.55,4721.0,4720.5,0.1056]
[1755092048347,0.55,4720.8,4718.4,0.16065059]
[1755092048611,0.55,4720.6,4720.3,0.1056]
[1755092048754,0.55,4720.6,4720.4,3.504]
[1755092048961,2.9125,4720.5,4720.3,0.1056]
[1755092049169,16.8625,4720.4,4720.3,0.1056]
[1755092049753,17.4125,4720.4,4720.3,0.1056]
[1755092050249,17.4125,4720.4,4720.3,3.6056]
[1755092050770,2.3625,4720.4,4720.3,3.6056]
[1755092051149,0.5682,4720.9,4720.3,3.6056]
[1755092051351,0.02,4720.4,4720.3,0.1056]
[1755092051558,2.3825,4720.4,4720.3,11.206]
[1755092051757,2.3825,4720.4,4720.3,8.6746]
[1755092052169,2.3825,4720.4,4720.3,8.6756]
[1755092052170,2.9325,4720.4,4720.3,8.6756]
[1755092052772,2.9325,4720.4,4718.8,0.001]
[1755092052773,0.55,4720.3,4718.8,0.001]
[1755092053074,2.9125,4720.3,4718.9,3.498]
[1755092053271,0.55,4720.1,4718.9,3.498]
[1755092053492,0.55,4719.9,4719.8,0.001]
[1755092053687,0.55,4719.9,4719.8,3.499]
[1755092053993,2.9125,4719.9,4719.8,3.499]
[1755092054178,0.4626,4720.3,4719.8,3.499]
[1755092054374,0.4626,4720.3,4719.8,3.4998]
[1755092054964,1.9199,4720.4,4719.9,3.0]
[1755092055291,0.02,4720.4,4719.9,3.0]
[1755092055490,0.4626,4720.3,4719.9,3.0]
[1755092055892,2.3625,4720.2,4719.8,0.0018]
[1755092056079,2.3625,4720.2,4719.9,3.495]
[1755092056395,2.3625,4720.1,4719.9,3.495]
[1755092056559,1.8999,4720.1,4719.9,3.495]
[1755092056766,0.4626,4720.0,4719.9,3.495]
[1755092056960,0.02,4720.4,4719.9,3.495]
[1755092057262,0.55,4720.2,4719.8,0.0018]
[1755092057462,0.55,4720.0,4719.8,0.0018]
[1755092057765,0.55,4720.0,4719.9,3.493]
[1755092057984,0.02,4720.4,4719.9,3.493]
[1755092058499,0.55,4720.2,4719.9,3.493]
[1755092058674,0.4626,4720.1,4719.9,3.493]
[1755092059174,0.55,4720.2,4719.9,3.493]
[1755092059366,0.02,4720.4,4719.9,3.493]
[1755092059689,0.55,4720.3,4719.9,3.4938]
[1755092059857,1.0126,4720.3,4719.9,3.4938]
[1755092060061,0.4626,4720.2,4719.9,3.4938]
[1755092060464,0.28933829,4720.5,4719.9,3.4938]
[1755092060989,14.5,4720.7,4719.9,3.4938]
[1755092061369,1.8999,4721.1,4720.0,3.0]
[1755092061570,1.8999,4721.1,4720.6,5.074]
[1755092061882,118.83512973,4721.3,4720.7,3.487]
[1755092063093,2.9125,4721.2,4720.8,3.484]
[1755092063393,0.55,4721.0,4720.7,0.1056]
[1755092063696,0.55,4720.8,4720.2,0.1056]
[1755092063874,0.6556,4720.8,4720.3,3.484]
[1755092064194,0.55,4720.6,4720.3,3.484]
[1755092064394,0.55,4720.4,4720.3,3.484]
[1755092064572,0.5492,4720.4,4720.3,3.484]
[1755092064769,2.9117,4720.4,4720.3,3.4848]
[1755092064972,2.9117,4720.4,4720.3,0.0008]
[1755092065172,3.0173,4720.4,4720.3,3.482]
[1755092065380,2.9117,4720.4,4720.3,3.482]
[1755092065682,2.3625,4720.4,4720.3,3.496]
[1755092066593,2.9125,4720.4,4720.3,3.496]
[1755092066917,18.50549375,4720.4,4720.3,3.496]
[1755092067278,0.55,4720.3,4719.8,0.001]
[1755092067492,2.9125,4720.3,4719.9,3.493]
[1755092067667,0.55,4720.1,4719.9,3.493]
[1755092067870,0.6556,4720.0,4719.9,3.493]
[1755092068188,3.0181,4720.0,4719.9,3.493]
[1755092068877,2.4681,4720.0,4719.9,3.493]
[1755092069196,0.1056,4720.0,4719.9,3.493]
[1755092069403,118.37252973,4721.3,4719.9,3.493]
[1755092069404,0.1056,4720.8,4719.9,3.5986]
[1755092069620,0.4499,4721.1,4720.6,0.1056]
[1755092069820,0.4499,4721.0,4720.0,0.02118644]
[1755092069967,118.37252973,4721.3,4720.9,0.1056]
[1755092070166,118.37252973,4721.3,4721.2,0.1056]
[1755092070413,120.20842973,4721.3,4721.2,3.5986]
[1755092070863,120.65832973,4721.3,4721.2,3.5986]
[1755092071519,118.37252973,4721.3,4721.2,11.3106]
[1755092072217,118.37252973,4721.3,4721.2,3.5986]
[1755092072793,118.37252973,4721.3,4721.2,0.1056]
[1755092073003,118.37252973,4721.3,4721.2,3.5936]
[1755092073387,118.92252973,4721.3,4721.2,0.1056]
[1755092073692,118.37252973,4721.3,4721.2,3.5936]
[1755092075189,118.37252973,4721.3,4721.2,3.5914]
[1755092075387,118.37252973,4721.3,4721.2,0.1064]
[1755092075597,121.20832973,4721.3,4721.2,3.5884]
[1755092076115,121.20832973,4721.3,4721.2,0.1064]
[1755092076299,118.92252973,4721.3,4721.2,3.5874]
[1755092076503,118.37252973,4721.3,4721.2,3.5874]
[1755092076691,118.92252973,4721.3,4721.2,3.5874]
[1755092076895,118.92172973,4721.3,4721.2,3.5874]
[1755092077090,118.92172973,4721.3,4721.2,3.4818]
[1755092077091,118.37172973,4721.3,4721.2,3.4818]
[1755092077697,118.92172973,4721.3,4721.2,0.0008]
[1755092078007,118.92172973,4721.3,4721.2,3.4798]
[1755092078393,121.20752973,4721.3,4721.2,3.4798]
[1755092078622,120.65752973,4721.3,4721.2,3.4798]
[1755092078823,118.37172973,4721.3,4721.2,3.4798]
[1755092078974,118.92172973,4721.3,4721.2,3.4798]
[1755092079910,118.92172973,4721.3,4721.2,3.4768]
[1755092080074,121.20752973,4721.3,4721.2,3.4768]
[1755092080274,118.92172973,4721.3,4721.2,3.4768]
[1755092081380,118.37172973,4721.3,4721.2,11.1878]
[1755092082112,118.37172973,4721.3,4721.2,10.8284]
[1755092082910,118.37172973,4721.3,4721.2,5.7554]
[1755092084521,118.37172973,4721.3,4721.2,11.38994611]
[1755092084681,118.37172973,4721.3,4721.2,11.65785399]
[1755092084888,118.37172973,4721.3,4721.2,8.7554]
[1755092085720,118.35054913,4721.3,4721.2,8.7554]
[1755092086231,118.35054913,4721.3,4721.2,9.02330788]
[1755092086396,112.6462802,4721.3,4721.2,9.02330788]
[1755092086890,112.6462802,4721.3,4721.2,9.28544578]
[1755092087393,112.6462802,4721.3,4721.2,13.16339199]
[1755092088102,112.6462802,4721.3,4721.2,12.89025409]
[1755092088316,112.6462802,4721.3,4721.2,9.38004578]
[1755092089286,112.6454802,4721.3,4721.2,9.38004578]
[1755092089491,112.6454802,4721.3,4721.2,9.11790788]
[1755092089908,112.6454802,4721.3,4721.2,9.38004578]
[1755092090113,112.6454802,4721.3,4721.2,9.11790788]
[1755092090312,112.6454802,4721.3,4721.2,5.385]
[1755092090623,112.6454802,4721.3,4721.2,8.844]
[1755092091415,112.6454802,4721.3,4721.2,19.189]
[1755092091727,112.6454802,4721.3,4721.2,14.2704]
[1755092091929,112.6454802,4721.3,4721.2,11.1648]
[1755092092230,112.6454802,4721.3,4721.2,3.4568]
[1755092092402,112.6454802,4721.3,4721.2,0.0008]
[1755092092725,112.6454802,4721.3,4721.2,3.4558]
[1755092093227,112.6454802,4721.3,4721.2,3.4548]
[1755092093407,112.6454802,4721.3,4721.2,0.0008]
[1755092093610,113.0953802,4721.3,4721.2,3.452]
[1755092093807,113.0953802,4721.3,4721.2,3.4528]
[1755092094125,114.9312802,4721.3,4721.2,0.0008]
[1755092094333,114.9312802,4721.3,4721.2,3.4518]
[1755092094729,114.9312802,4721.3,4721.2,0.0008]
[1755092095026,112.6454802,4721.3,4721.2,3.4498]
[1755092095209,114.9312802,4721.3,4721.2,3.4498]
[1755092095408,112.6454802,4721.3,4721.2,3.4498]
[1755092095607,112.6454802,4721.3,4721.2,0.0008]
[1755092095830,114.9312802,4721.3,4721.2,3.455]
[1755092096008,112.6454802,4721.3,4721.2,3.455]
[1755092096414,114.9312802,4721.3,4721.2,6.458]
[1755092097322,113.0953802,4721.3,4721.2,6.458]
[1755092097526,114.9312802,4721.3,4721.2,6.458]
[1755092097728,114.9312802,4721.3,4721.2,6.45507711]
[1755092098734,112.6454802,4721.3,4721.2,6.45507711]
[1755092098939,112.6454802,4721.3,4721.2,6.45587711]
[1755092100433,113.0740802,4721.3,4721.2,2.99787711]
[1755092100635,114.9703802,4721.3,4721.2,6.45087711]
[1755092101026,114.9703802,4721.3,4721.2,2.99787711]
[1755092101207,114.9695802,4721.3,4721.2,6.45087711]
[1755092101410,115.5195802,4721.3,4721.2,7.7098]
[1755092101631,115.5195802,4721.3,4721.2,11.1618]
[1755092101834,115.5195802,4721.3,4721.2,8.6304]
[1755092102010,117.72613588,4721.3,4721.2,8.5248]
[1755092102214,117.72613588,4721.3,4721.2,3.4528]
[1755092102750,0.55,4721.2,4721.1,0.001]
[1755092102911,14.82110118,4721.2,4721.1,3.452]
[1755092103109,14.79462487,4721.2,4721.1,3.45113093]
[1755092103445,5.18705568,4721.2,4721.1,3.45113093]
[1755092103744,5.18705568,4721.2,4720.7,0.001]
[1755092103929,0.1056,4720.8,4720.7,0.001]
[1755092104131,0.6556,4720.8,4720.7,0.001]
[1755092104353,2.8749,4720.8,4720.7,0.001]
[1755092104512,3.40952413,4720.8,4720.7,0.001]
[1755092104827,3.38304557,4720.8,4720.7,3.452]
[1755092105512,0.55,4720.7,4720.5,0.1056]
[1755092105708,0.02647968,4720.6,4720.5,0.1056]
[1755092105928,0.55,4720.5,4719.9,0.1056]
[1755092106222,0.55,4720.3,4719.9,0.1056]
[1755092106624,0.0264808,4720.4,4720.0,0.628]
[1755092106830,0.55,4720.1,4720.0,0.628]
[1755092107132,2.8749,4720.1,4720.0,0.628]
[1755092107312,3.22003802,4720.1,4720.0,0.628]
[1755092107941,0.55,4720.0,4717.3,0.0205]
[1755092108116,0.55,4720.0,4719.6,0.1056]
[1755092108316,0.55,4719.8,4719.7,2.733]
[1755092108543,2.8749,4719.8,4719.7,2.733]
[1755092108711,3.2074638,4719.8,4719.7,2.733]
[1755092109641,17.7074638,4719.8,4719.7,2.733]
[1755092110521,17.7074638,4719.8,4719.7,2.8386]
[1755092111420,17.7074638,4719.8,4719.7,10.5506]
[1755092111719,15.8111638,4719.8,4719.7,10.5506]
[1755092111957,0.55,4720.3,4719.7,10.5506]
[1755092112453,0.55,4720.3,4720.2,0.1056]
[1755092112614,2.8749,4720.3,4720.2,0.1056]
[1755092113364,0.9786,4720.3,4720.2,0.1056]
[1755092113521,0.55,4720.3,4720.2,0.1056]
[1755092113917,0.02,4720.4,4720.2,0.1056]
[1755092114337,0.02,4720.4,4720.3,0.1056]
[1755092114947,0.02,4720.4,4720.3,0.0205]
[1755092115248,0.02,4720.4,4720.3,18.96569876]
[1755092115636,0.02,4720.4,4720.3,6.445]
[1755092116346,0.02,4720.4,4720.3,6.447]
[1755092116679,0.02,4720.4,4720.3,6.449]
[1755092116819,0.02,4720.4,4720.3,6.448]
[1755092117944,0.02,4720.4,4720.3,6.4685]
[1755092118359,0.02,4720.4,4720.3,6.448]
[1755092119648,0.02,4720.4,4720.3,3.0008]
[1755092119830,0.9986,4720.4,4720.3,6.4458]
[1755092120255,0.57,4720.4,4720.3,6.4458]
[1755092120460,0.02,4720.4,4720.3,6.4458]
[1755092120872,112.6446802,4721.3,4720.3,3.8064]
[1755092121187,112.6446802,4721.3,4720.4,0.0205]
[1755092121477,112.6446802,4721.3,4721.2,10.711]
[1755092121783,112.6446802,4721.3,4721.2,14.154]
[1755092121982,112.6446802,4721.3,4721.2,11.516]
[1755092122283,112.6446802,4721.3,4721.2,6.443]
[1755092122483,112.6446802,4721.3,4721.2,6.4635]
[1755092122834,112.6446802,4721.3,4721.2,3.0]
[1755092123036,115.82983588,4721.3,4721.2,3.0]
[1755092123286,117.72613588,4721.3,4721.2,3.441]
[1755092123448,0.55,4721.2,4720.3,0.0018]
[1755092123641,3.9786,4721.2,4720.4,3.442]
[1755092123960,0.55,4721.0,4720.5,3.442]
[1755092124167,0.55,4721.0,4720.3,0.0018]
[1755092124168,0.55,4720.8,4720.3,0.0018]
[1755092124568,2.20655568,4721.1,4720.3,0.0018]
[1755092124569,0.55,4720.6,4720.3,0.0018]
[1755092124866,0.02648024,4720.5,4720.4,3.44]
[1755092125068,3.55,4721.0,4720.5,0.1056]
[1755092125269,3.55,4720.8,4720.4,0.1064]
[1755092125572,3.55,4720.8,4720.3,0.001]
[1755092125573,0.02117951,4720.7,4720.3,0.001]
[1755092125737,0.55,4720.6,4720.3,0.001]
[1755092125944,0.55,4720.4,4720.3,0.001]
[1755092126377,2.8749,4720.4,4720.3,0.001]
[1755092126558,4.62295,4720.4,4720.3,0.001]
[1755092126756,4.62295,4720.4,4720.3,3.439]
[1755092127490,4.62295,4720.4,4720.3,3.438]
[1755092127674,4.62295,4720.4,4720.3,3.5436]
[1755092128175,0.1056,4721.0,4720.3,3.5436]
[1755092128176,2.63515568,4721.1,4720.3,3.5436]
[1755092128571,0.55,4721.0,4720.3,3.5436]
[1755092128772,114.5409802,4721.3,4720.3,0.1066]
[1755092128961,114.5409802,4721.3,4720.4,3.438]
[1755092129156,114.9695802,4721.3,4720.5,0.00529944]
[1755092129476,112.6446802,4721.3,4721.2,0.1056]
[1755092131385,112.6446802,4721.3,4721.2,6.1796]
[1755092131577,112.6446802,4721.3,4721.2,7.8166]
[1755092131780,112.6446802,4721.3,4721.2,11.4841]
[1755092131980,112.6446802,4721.3,4721.2,14.4841]
[1755092132295,112.6446802,4721.3,4721.2,8.1786]
[1755092132810,112.6446802,4721.3,4721.2,6.5406]
[1755092133164,113.6310802,4721.3,4721.2,6.5396]
[1755092133365,116.94760103,4721.3,4721.2,0.1056]
[1755092133597,116.94760103,4721.3,4721.2,3.5416]
[1755092134093,116.94760103,4721.3,4721.2,0.1056]
[1755092134299,116.94760103,4721.3,4721.2,3.5416]
[1755092134497,116.94680103,4721.3,4721.2,3.5424]
[1755092134689,116.94680103,4721.3,4721.2,0.1064]
[1755092135092,116.94680103,4721.3,4721.2,3.5404]
[1755092135471,112.6938802,4721.3,4721.2,3.5404]
[1755092135768,114.9191802,4721.3,4721.2,0.1064]
[1755092136202,114.9191802,4721.3,4721.2,3.5394]
[1755092136396,114.9191802,4721.3,4721.2,0.1064]
[1755092136581,117.12573588,4721.3,4721.2,0.1064]
[1755092136770,117.12573588,4721.3,4721.2,3.5394]
[1755092136976,117.12573588,4721.3,4721.2,0.1064]
[1755092137197,117.12573588,4721.3,4721.2,0.0008]
[1755092137395,117.12573588,4721.3,4721.2,3.4328]
[1755092137808,117.12573588,4721.3,4721.2,0.0008]
[1755092137977,117.12573588,4721.3,4721.2,3.4328]
[1755092138789,117.12573588,4721.3,4721.2,0.0008]
[1755092138975,117.12573588,4721.3,4721.2,3.4318]
[1755092139330,115.33683588,4721.3,4721.2,3.4318]
[1755092139626,112.1438802,4721.3,4721.2,3.4318]
[1755092139825,112.1438802,4721.3,4721.2,6.5374]
[1755092140819,112.6938802,4721.3,4721.2,6.5374]
[1755092141478,112.6938802,4721.3,4721.2,14.2484]
[1755092141694,112.1438802,4721.3,4721.2,14.2484]
[1755092142891,112.1438802,4721.3,4721.2,8.1794]
[1755092143096,112.1438802,4721.3,4721.2,11.6054]
[1755092143300,112.6938802,4721.3,4721.2,6.5324]
[1755092143895,112.6938802,4721.3,4721.2,3.1064]
[1755092144207,112.6938802,4721.3,4721.2,6.5324]
[1755092144379,112.6938802,4721.3,4721.2,3.1064]
[1755092144706,112.6938802,4721.3,4721.2,6.5324]
[1755092144916,112.6938802,4721.3,4721.2,3.1064]
[1755092145117,112.6938802,4721.3,4721.2,6.5324]
[1755092145773,112.1438802,4721.3,4721.2,6.5324]
[1755092146685,112.1430802,4721.3,4721.2,6.5324]
[1755092147004,112.6930802,4721.3,4721.2,6.5324]
[1755092149982,114.9183802,4721.3,4721.2,6.5324]
[1755092150183,117.12493588,4721.3,4721.2,0.1064]
[1755092150434,0.55,4721.2,4720.8,0.1056]
[1755092150628,0.55,4721.0,4720.9,3.425]
[1755092150916,2.7753,4721.0,4720.9,3.425]
[1755092151248,4.98185568,4721.0,4720.9,3.425]
[1755092151376,4.98185568,4721.0,4720.9,6.062]
[1755092151581,4.98185568,4721.0,4720.9,11.134]
[1755092152280,112.1430802,4721.3,4720.9,8.6026]
[1755092152714,112.1430802,4721.3,4720.9,3.5306]
[1755092153218,112.1430802,4721.3,4720.9,3.425]
[1755092153420,112.1430802,4721.3,4721.2,0.1056]
[1755092153793,112.6930802,4721.3,4721.2,0.1056]
[1755092154985,114.9183802,4721.3,4721.2,0.1056]
[1755092155191,112.6930802,4721.3,4721.2,0.1056]
[1755092156487,117.12493588,4721.3,4721.2,3.5306]
[1755092156709,117.12493588,4721.3,4721.2,6.5306]
[1755092157120,114.89963588,4721.3,4721.2,6.5306]
[1755092157426,112.1430802,4721.3,4721.2,6.5306]
[1755092157718,112.6930802,4721.3,4721.2,6.5306]
[1755092160801,112.1430802,4721.3,4721.2,6.5306]
[1755092160997,112.6930802,4721.3,4721.2,6.5306]
[1755092161505,112.6930802,4721.3,4721.2,14.2396]
[1755092162299,112.6930802,4721.3,4721.2,11.9369889]
[1755092162300,112.1430802,4721.3,4721.2,11.9369889]
[1755092162515,112.1430802,4721.3,4721.2,7.0974889]
[1755092162998,112.1430802,4721.3,4721.2,6.8649889]
[1755092163400,112.1430802,4721.3,4721.2,6.5296]
[1755092163800,112.1430802,4721.3,4721.2,3.1056]
[1755092163990,116.39373332,4721.3,4721.2,0.1056]
[1755092164194,116.39373332,4721.3,4721.2,3.5296]
[1755092164408,116.39373332,4721.3,4721.2,3.5304]
[1755092165293,114.13443332,4721.3,4721.2,3.5304]
[1755092165889,113.1598802,4721.3,4721.2,3.5304]
[1755092166092,114.9523802,4721.3,4721.2,3.5304]
[1755092166311,114.9523802,4721.3,4721.2,0.1064]
[1755092166518,114.9523802,4721.3,4721.2,3.5304]
[1755092166715,114.9523802,4721.3,4721.2,0.1064]
[1755092166922,117.15893588,4721.3,4721.2,3.4248]
[1755092167099,117.15893588,4721.3,4721.2,3.5304]
[1755092167425,114.89963588,4721.3,4721.2,3.5304]
[1755092167631,115.36643588,4721.3,4721.2,3.5304]
[1755092168018,112.1430802,4721.3,4721.2,3.5304]
[1755092168219,113.1598802,4721.3,4721.2,3.5304]
[1755092168422,114.9523802,4721.3,4721.2,3.5304]
[1755092169465,113.1598802,4721.3,4721.2,3.5304]
[1755092169750,114.9523802,4721.3,4721.2,3.5304]
[1755092169930,112.6930802,4721.3,4721.2,3.5304]
[1755092171108,114.9523802,4721.3,4721.2,0.1064]
[1755092171456,114.9523802,4721.3,4721.2,14.2414]
[1755092171755,112.1430802,4721.3,4721.2,14.2414]
[1755092171966,111.6626802,4721.3,4721.2,12.07906855]
[1755092172247,111.4301802,4721.3,4721.2,7.00606855]
[1755092172408,111.4301802,4721.3,4721.2,7.11166855]
[1755092172604,111.4301802,4721.3,4721.2,38.27042935]
[1755092172902,110.91791746,4721.3,4721.2,54.66799121]
[1755092173127,102.4651428,4721.3,4721.2,48.3768867]
[1755092173304,94.79554436,4721.3,4721.2,49.4280687]
[1755092173509,90.56977948,4721.3,4721.2,50.4494659]
[1755092173931,84.22879847,4721.3,4721.2,50.4494659]
[1755092174106,83.58638649,4721.3,4721.2,50.4494659]
[1755092174306,83.27115275,4721.3,4721.2,53.81270893]
[1755092174508,82.49504397,4721.3,4721.2,53.52449735]
[1755092174808,81.74269729,4721.3,4721.2,53.62114098]
[1755092175223,81.74269729,4721.3,4721.2,18.46106211]
[1755092175539,79.70725455,4721.3,4721.2,33.78398138]
[1755092175704,79.00302466,4721.3,4721.2,33.81088535]
[1755092175899,78.80078641,4721.3,4721.2,21.87166049]
[1755092176372,78.56619665,4721.3,4721.2,21.50347903]
[1755092176683,78.36361853,4721.3,4721.2,21.78917564]
[1755092177358,77.65059124,4721.3,4721.2,21.60379057]
[1755092177562,77.26312115,4721.3,4721.2,26.28426689]
[1755092177759,77.26312115,4721.3,4721.2,26.45413602]
[1755092178258,75.31964078,4721.3,4721.2,38.35405529]
[1755092178469,74.34028961,4721.3,4721.2,37.99848955]
[1755092178658,60.65064045,4721.3,4721.2,37.35326195]
[1755092178863,26.60893672,4721.3,4721.2,49.25418122]
[1755092179048,25.83947388,4721.3,4721.2,45.63424792]
[1755092179249,16.84723944,4721.3,4721.2,46.34940096]
[1755092179466,7.82804753,4721.3,4721.2,40.73720208]
[1755092179672,7.82804753,4721.3,4721.2,40.63720208]
[1755092179869,7.82804753,4721.3,4721.2,17.15353861]
[1755092180085,5.7144595,4721.3,4721.2,29.10767604]
[1755092180380,0.002,4722.3,4721.3,1.76489051]
[1755092180541,0.002,4722.3,4722.2,11.90091927]
[1755092180741,0.002,4722.3,4722.2,15.52651927]
[1755092180987,0.002,4722.3,4722.2,3.42]
[1755092181170,0.002,4722.3,4722.2,15.32091927]
[1755092181558,0.002,4722.3,4722.2,19.60591927]
[1755092181757,0.002,4722.3,4722.2,41.15333708]
[1755092181963,0.002,4722.3,4722.2,43.32616752]
[1755092182157,0.002,4722.3,4722.2,19.85806541]
[1755092182368,0.002,4722.3,4722.2,22.72806541]
[1755092182611,0.002,4722.3,4722.2,18.92648614]
[1755092182750,0.002,4722.3,4722.2,22.34648614]
[1755092182952,0.002,4722.3,4722.2,15.17274971]
[1755092183154,0.002,4722.3,4722.2,18.32091927]
[1755092183492,0.002,4722.3,4722.2,15.32091927]
[1755092183976,0.002,4722.3,4722.2,18.6123557]
[1755092184546,0.002,4722.3,4722.2,14.90091927]
[1755092184749,0.002,4722.3,4722.2,18.63032809]
[1755092184949,0.002,4722.3,4722.2,18.32091927]
[1755092185186,0.002,4722.3,4722.2,19.14983744]
[1755092185348,0.002,4722.3,4722.2,31.05075671]
[1755092185549,0.002,4722.3,4722.2,19.14983744]
[1755092185784,0.002,4722.3,4722.2,15.21032809]
[1755092185985,0.002,4722.3,4722.2,18.63032809]
[1755092186163,0.002,4722.3,4722.2,18.32091927]
[1755092186880,0.002,4722.3,4722.2,18.63032809]
[1755092187248,0.002,4722.3,4722.2,15.32091927]
[1755092187568,0.002,4722.3,4722.2,15.53251927]
[1755092187772,0.002,4722.3,4722.2,15.8584064]
[1755092188084,0.002,4722.3,4722.2,16.19924769]
[1755092188580,0.002,4722.3,4722.2,15.8584064]
[1755092188885,0.002,4722.3,4722.2,16.19924769]
[1755092189079,0.002,4722.3,4722.2,19.19924769]
[1755092189481,0.002,4722.3,4722.2,31.87756696]
[1755092189986,0.002,4722.3,4722.2,32.42756696]
[1755092190279,0.002,4722.3,4722.2,44.32848623]
[1755092190484,0.002,4722.3,4722.2,44.5791756]
[1755092190779,0.002,4722.3,4722.2,44.6791756]
[1755092190973,0.002,4722.3,4722.2,48.53851203]
[1755092191278,0.002,4722.3,4722.2,48.43851203]
[1755092191480,0.01321241,4722.7,4722.2,55.83151203]
[1755092191682,0.01321241,4722.7,4722.6,0.7616]
[1755092191855,0.01321241,4722.7,4722.6,7.96801631]
[1755092192188,0.01321241,4722.7,4722.6,8.74561631]
[1755092192483,0.01321241,4722.7,4722.6,8.84561631]
[1755092192978,0.01321241,4722.7,4722.6,3.65817502]
[1755092193151,0.01321241,4722.7,4722.6,7.07717502]
[1755092193354,0.01321241,4722.7,4722.6,7.41801631]
[1755092193773,0.01321241,4722.7,4722.6,3.99901631]
[1755092194268,0.01321241,4722.7,4722.6,7.41801631]
[1755092194449,0.01321241,4722.7,4722.6,7.07717502]
[1755092194653,0.01241241,4722.7,4722.6,18.97795001]
[1755092194873,0.01241241,4722.7,4722.6,18.97875001]
[1755092195061,0.01241241,4722.7,4722.6,15.9005913]
[1755092195267,0.01241241,4722.7,4722.6,22.96369491]
[1755092195485,0.01241241,4722.7,4722.6,22.62285362]
[1755092196196,0.01241241,4722.7,4722.6,25.39685362]
[1755092196363,0.01241241,4722.7,4722.6,19.43909491]
[1755092196569,0.01241241,4722.7,4722.6,22.85809491]
[1755092196795,0.44971241,4722.7,4722.6,22.51725362]
[1755092197096,0.01241241,4722.7,4722.6,22.51725362]
[1755092197793,0.44971241,4722.7,4722.6,6.97237502]
[1755092198163,0.44971241,4722.7,4722.6,3.55337502]
[1755092198408,0.44971241,4722.7,4722.6,6.97237502]
[1755092198700,0.44971241,4722.7,4722.6,7.31321631]
[1755092199186,0.44971241,4722.7,4722.6,6.97237502]
[1755092199362,0.01241241,4722.7,4722.6,3.89421631]
[1755092199563,0.01241241,4722.7,4722.6,7.31321631]
[1755092200094,2.73411241,4722.7,4722.6,0.0008]
[1755092200303,2.73411241,4722.7,4722.6,3.4198]
[1755092200500,0.44971241,4722.7,4722.6,3.76077502]
[1755092200672,2.73411241,4722.7,4722.6,0.34177502]
[1755092200873,2.73411241,4722.7,4722.6,3.4198]
[1755092201068,0.01241241,4722.7,4722.6,3.76077502]
[1755092201281,0.01241241,4722.7,4722.6,4.10161631]
[1755092201570,0.01241241,4722.7,4722.6,14.43961631]
[1755092201767,0.01241241,4722.7,4722.6,11.80461631]
[1755092201972,0.01241241,4722.7,4722.6,9.16961631]
[1755092202187,0.01241241,4722.7,4722.6,9.38121631]
[1755092202396,0.01241241,4722.7,4722.6,0.89421631]
[1755092202596,0.01241241,4722.7,4722.6,4.31221631]
[1755092203188,0.01241241,4722.7,4722.6,0.89421631]
[1755092203397,0.44971241,4722.7,4722.6,3.89421631]
[1755092203610,2.2844,4723.3,4722.7,0.58863993]